Cogmind - Beta 13 @@@ ROGUE MODE // 2024.03.31 @ 08:00:48 Player: raiguard Result: Destroyed by G-34 Mercenary with Small Laser Performance ------------- Evolutions (1) 500 Regions Visited (3) 600 Robots Destroyed (1) 5 Value Destroyed (34) 34 Prototype IDs (1) 20 Alien Tech Used (0) 0 Bonus (0) 0 TOTAL SCORE: 1159 Bonus ------- None Cogmind --------- Core Integrity 0/400 Matter 257/300 Energy 99/100 System Corruption 0% Temperature Cool (6) Movement Core (50) Location -9/Materials Parts ------- > --- POWER (2) -------- (None) > --- PROPULSION (2) --- (None) > --- UTILITY (2) ------ (None) > --- WEAPON (3) ------- (None) > --- INVENTORY (5) ---- Small Matter Pod (0) Structural Scanner Terrain Scanner Peak State ------------ > --- POWER ------------ (None) > --- PROPULSION ------- (None) > --- UTILITY ---------- Core Shielding Splice Drone Bay > --- WEAPON ----------- (None) > --- INVENTORY -------- Small Matter Pod Structural Scanner Terrain Scanner [Rating: 8] Favorites ----------- Power Light Ion Engine Engine Light Ion Engine Propulsion Wheel Leg Aluminum Leg Wheel Wheel Hover Unit Hover Unit Utility Core Shielding Device Terrain Scanner Protection Core Shielding Weapon Light Assault Rifle Ballistic Gun Light Assault Rifle Build | -11 -10 -10 -9 ------- Run | Yrd Mat Min Mat Slots Evolved 2 | . . . 2 Power 1 | . . . 1 Propulsion . | . . . . Utility . | . . . . Weapon 1 | . . . 1 Parts Attached 11 | 6 2 1 2 Power 1 | 1 . . . Engine 1 | 1 . . . Core . | . . . . Reactor . | . . . . Propulsion 5 | 4 . 1 . Treads . | . . . . Leg 2 | 2 . . . Wheel 2 | 2 . . . Hover 1 | . . 1 . Flight . | . . . . Utility 4 | . 2 . 2 Device 3 | . 1 . 2 Storage . | . . . . Processor . | . . . . Hackware . | . . . . Protection 1 | . 1 . . Artifact . | . . . . Weapon 1 | 1 . . . Energy Gun . | . . . . Energy Cannon . | . . . . Ballistic Gun 1 | 1 . . . Ballistic Cannon . | . . . . Launcher . | . . . . Special Weapon . | . . . . Impact Weapon . | . . . . Slashing Weapon . | . . . . Piercing Weapon . | . . . . Special Melee Weapon . | . . . . Unidentified Prototypes 1 | . . . 1 Parts Lost 6 | . . 4 2 Power 1 | . . 1 . Propulsion 2 | . . 2 . Utility 2 | . . . 2 Weapon 1 | . . 1 . Highest Loss Streak 4 | . . 4 2 To Critical Strikes . | . . . . Average Slot Usage (%) 63 | . 75 81 11 Engine 10 | . 14 13 . Wheel 20 | . 28 25 . Device 10 | . 9 14 5 Protection 10 | . 9 14 6 Ballistic Gun 9 | . 14 11 . Naked Turns 55 | . . . 55 Heaviest Build 9 | 4 6 6 9 Greatest Support 20 | 20 20 20 3 Greatest Overweight (x) 2 | . . 1 2 Average Overweight (x) . | . . . . Largest Inventory Capacity 5 | 5 5 5 5 Average Capacity 5 | 5 5 5 5 Most Carried 5 | 4 4 5 4 Average Carried 3 | 1 2 4 2 Final Capacity 5 | 5 5 5 5 Final Carried 4 | 2 3 4 3 Class Distribution -------------------- 100% | Mutant Dominant Class ---------------- Mutant | -10/Materials Mutant | -10/Mines Mutant | -9/Materials Resources | -11 -10 -10 -9 ----------- Run | Yrd Mat Min Mat Matter Collected 254 | 234 . 20 . Remotely . | . . . . Salvage Created 30 | 30 . . . Parts 3 | 3 . . . Haulers Intercepted . | . . . . Recyclers Shooed . | . . . . Parts Field Recycled . | . . . . Retrieved Matter . | . . . . Parts Self-Destructed . | . . . . Prevented . | . . . . Kills | -11 -10 -10 -9 ------- Run | Yrd Mat Min Mat Combat Hostiles Destroyed 1 | 1 . . . Guns 1 | 1 . . . Classes Destroyed 1 | 1 . . . Grunt 1 | 1 . . . Best Kill Streak 1 | 1 . . . Combat Bots Only 1 | 1 . . . Max Kills in Single Turn 1 | 1 . . . Gunslinging . | . . . . Exploded . | . . . . Melee . | . . . . Uniques/NPCs Destroyed . | . . . . Combat | -11 -10 -10 -9 -------- Run | Yrd Mat Min Mat Hostile Shots Fired 125 | 10 . 50 65 Missed 42 | 2 . 25 15 Damage Taken 964 | 87 40 191 646 Core 485 | 11 . 72 402 Absorbed by Shields . | . . . . Redirected to Shielding 50 | . . 12 38 Core Remaining (%) 80 | 95 . 66 . Volleys Fired 17 | 8 9 . . Largest 1 | 1 1 . . Hottest 20 | 20 20 . . Shots Fired 17 | 8 9 . . Gun 17 | 8 9 . . Cannon . | . . . . Launcher . | . . . . Special . | . . . . Kinetic 17 | 8 9 . . Thermal . | . . . . Explosive . | . . . . Electromagnetic . | . . . . Robot Hit Streak 3 | 2 3 . . Robot Miss Streak 3 | 3 2 . . Penetration Max . | . . . . Secondary Targets . | . . . . Shots Hit Robots 7 | 4 3 . . Core Hits 3 | 2 1 . . Critical Kills . | . . . . Critical Parts Destroyed . | . . . . Critical Strikes . | . . . . Melee Attacks . | . . . . Impact . | . . . . Slashing . | . . . . Piercing . | . . . . Sneak Attacks . | . . . . Combat Hostiles . | . . . . Follow-up Attacks . | . . . . Damage Inflicted 66 | 42 24 . . Guns 66 | 42 24 . . Cannons . | . . . . Explosions . | . . . . Melee . | . . . . Ramming . | . . . . Kinetic 66 | 42 24 . . Thermal . | . . . . Explosive . | . . . . Electromagnetic . | . . . . Impact . | . . . . Slashing . | . . . . Piercing . | . . . . Highest Corruption . | . . . . Average Corruption . | . . . . Corruption Purged . | . . . . Corruption Blocked . | . . . . Overload Shots . | . . . . Overflow Damage . | . . . . Projectiles . | . . . . Explosions . | . . . . Melee . | . . . . Knockbacks . | . . . . Impact . | . . . . Kinetic . | . . . . Secondary . | . . . . Self-Inflicted Damage . | . . . . Shots . | . . . . Rammed . | . . . . Targets Rammed . | . . . . Kicked . | . . . . Crushed . | . . . . Highest Temperature 6 | 6 . . 5 Average Temperature 5 | 6 . . 5 Received Heat Transfer 408 | 48 . . 360 Siege Activations . | . . . . Robots Corrupted . | . . . . Combat Hostiles . | . . . . Parts Fried . | . . . . Impact Corruptions . | . . . . Robots Melted . | . . . . Combat Hostiles . | . . . . Parts Melted . | . . . . Heat Transferred . | . . . . Parts Sabotaged . | . . . . Parts Stolen . | . . . . Parts Stripped . | . . . . Power Chain Reactions . | . . . . Alert | -11 -10 -10 -9 ------- Run | Yrd Mat Min Mat Peak Influence 28 | 20 28 10 26 Initial 13 | . 13 10 . Average 10 | 1 17 8 9 Maximum Alert Level . | . . . . Low Security (%) 100 | 100 100 100 100 Level 1 . | . . . . Level 2 . | . . . . Level 3 . | . . . . Level 4 . | . . . . Level 5 . | . . . . High Security . | . . . . Max Security . | . . . . Squads Dispatched . | . . . . Investigation . | . . . . Extermination . | . . . . Reinforcement . | . . . . Assault . | . . . . Garrison . | . . . . Intercept . | . . . . Searches Triggered . | . . . . Construction Impeded . | . . . . Haulers Reinforced . | . . . . Active Scanning Responses . | . . . . Cargo Convoy Interrupts . | . . . . Stealth | -11 -10 -10 -9 --------- Run | Yrd Mat Min Mat Distress Signals . | . . . . Communications Jammed . | . . . . Distress Signals . | . . . . Times Spotted 9 | 1 1 3 4 Peak Tracking Total 5 | 1 1 3 5 Tactical Retreats . | . . . . Traps | -11 -10 -10 -9 ------- Run | Yrd Mat Min Mat Traps Triggered 1 | . 1 . . Indirectly . | . . . . Trap Hack Attempts . | . . . . Triggered . | . . . . Disarmed . | . . . . Reprogrammed . | . . . . Reused . | . . . . Traps Extracted . | . . . . Installed . | . . . . Triggered . | . . . . Machines | -11 -10 -10 -9 ---------- Run | Yrd Mat Min Mat Machines Disabled . | . . . . Max in Single Turn . | . . . . Machines Repaired . | . . . . Machines Dismantled . | . . . . Machines Sabotaged . | . . . . Overloaded Fab Kills . | . . . . Hacking | -11 -10 -10 -9 --------- Run | Yrd Mat Min Mat Machines Accessed 3 | . 1 1 1 Terminals 2 | . 1 . 1 Fabricators . | . . . . Repair Stations . | . . . . Recycling Units . | . . . . Scanalyzers . | . . . . Garrison Access . | . . . . Total Hacks 5 | . 1 1 3 Successful 3 | . . 1 2 Failed 2 | . 1 . 1 Catastrophic . | . . . . Database Lockouts . | . . . . Manual . | . . . . Terminals 4 | . 1 . 3 Fabricators . | . . . . Repair Stations . | . . . . Recycling Units . | . . . . Scanalyzers . | . . . . Garrison Access . | . . . . Terminal Hacks 3 | . . 1 2 Open Door 1 | . . 1 . Emergency Access Points 1 | . . . 1 Assault Status 1 | . . . 1 Fabricator Hacks . | . . . . Repair Station Hacks . | . . . . Recycling Unit Hacks . | . . . . Scanalyzer . | . . . . Garrison Access Hacks . | . . . . Unauthorized Hacks . | . . . . Terminals . | . . . . Fabricators . | . . . . Repair Stations . | . . . . Recycling Units . | . . . . Scanalyzers . | . . . . Garrison Access . | . . . . Data Cores Recovered . | . . . . Used . | . . . . Hacking Detections 2 | . 1 . 1 Full Trace Events . | . . . . Feedback Events . | . . . . Feedback Blocked . | . . . . Robot Schematics Acquired . | . . . . Robots Built . | . . . . Authchips . | . . . . Time . | . . . . Total Robot Build Rating . | . . . . Part Schematics Acquired . | . . . . Parts Built . | . . . . Authchips . | . . . . Time . | . . . . Total Part Build Rating . | . . . . Parts Repaired . | . . . . Time . | . . . . Parts Recycled . | . . . . Recycled Matter . | . . . . Retrieved Matter . | . . . . Retrieved Components . | . . . . Parts Scanalyzed . | . . . . Part Schematics Acquired . | . . . . Parts Damaged . | . . . . Bothacking | -11 -10 -10 -9 ------------ Run | Yrd Mat Min Mat Used RIF Installer . | . . . . Robots Hacked . | . . . . Non-combat . | . . . . Combat . | . . . . Robot Hacks Applied . | . . . . Relay Couplers Released . | . . . . Fabnet Peak Effective % . | . . . . Robots Rewired . | . . . . Allies Hacked . | . . . . Hacks Repelled . | . . . . Allies | -11 -10 -10 -9 -------- Run | Yrd Mat Min Mat Total Allies . | . . . . Largest Group . | . . . . Highest-Rated Group . | . . . . Highest-Rated Ally . | . . . . Total Orders . | . . . . Ally Attacks . | . . . . Total Damage . | . . . . Kills . | . . . . Allies Corrupted . | . . . . Allies Melted . | . . . . Intel | -11 -10 -10 -9 ------- Run | Yrd Mat Min Mat Robot Analysis Total . | . . . . Derelict Logs Recovered . | . . . . Drone Launches . | . . . . Drone Recoveries . | . . . . Exploration | -11 -10 -10 -9 ------------- Run | Yrd Mat Min Mat Turns Passed 626 | 82 171 251 122 Spaces Moved 785 | 79 187 324 195 Core 256 | 29 . 32 195 Treads . | . . . . Legs . | . . . . Wheels 497 | 50 187 260 . Hover 32 | . . 32 . Flight . | . . . . Fastest Speed 50 | 50 80 50 50 Average Speed 71 | 68 80 76 57 Slowest Speed 150 | 80 80 100 150 Overloaded Moves . | . . . . Propulsion Burnouts . | . . . . Robots Hopped . | . . . . Cave-ins Triggered . | . . . . Exploration Rate (%) 21 | 5 27 45 10 Regions Visited 3 Branch Regions 1 Pre-discovered Areas . | . . . . Known Exits Taken . | . . . . Unknown Exits Taken 3 | 1 1 1 . Scrap Searched 1 | . . 1 . Spaces Dug . | . . . . Terrain Destroyed . | . . . . Melee . | . . . . Projectile . | . . . . AOE . | . . . . Terrain Rammed . | . . . . Walls Destroyed . | . . . . Machines Disabled . | . . . . Actions | -11 -10 -10 -9 --------- Run | Yrd Mat Min Mat Total 833 | 100 200 327 206 Wait 1 | . . . 1 Move 782 | 78 186 323 195 Hop . | . . . . Pick Up 14 | 6 3 2 3 Fast Attach . | . . . . Attach 9 | 6 2 . 1 Detach 3 | 2 . . 1 Swap 2 | . . 1 1 Drop 5 | . . 1 4 Fire 17 | 8 9 . . Melee . | . . . . Ram . | . . . . Kick . | . . . . Crush . | . . . . Escape Stasis . | . . . . Rewire . | . . . . Trap . | . . . . Miscellaneous . | . . . . Route ------- -11/Scrapyard -10/Materials -10/Mines -9/Materials History --------- Turn | Location | Event 2 | -11/Scrapyard | Met Revision 17 55 | -11/Scrapyard | Discovered new exit (range 8) 83 | -11/Scrapyard | Entered Materials 243 | -10/Materials | Discovered new exit (range 10) 254 | -10/Materials | Entered Mines 312 | -10/Mines | Found the Drone Emporium 315 | -10/Mines | Build established: Mutant 320 | -10/Mines | Found Prototype Device 364 | -10/Mines | Discovered new exit (range 15) 505 | -10/Mines | Entered Materials 505 | -9/Materials | Evolved 2 slots: Power x1, Weapon x1 535 | -9/Materials | Lost 4 parts (1p2n1w) 545 | -9/Materials | Identified Splice Drone Bay 579 | -9/Materials | Core integrity fell below 50% 600 | -9/Materials | Core integrity fell below 20% 627 | -9/Materials | Destroyed by G-34 Mercenary with Small Laser Last Messages --------------- Acquired Structural Scanner. Dropped Prototype Device. Acquired Prototype Device. Identified Splice Drone Bay. [Achievement: Risk Taker] Critical hit (Burn: +37). Splice Drone Bay destroyed. Core Shielding destroyed. Connecting with Terminal... Current location identified: Materials >>Access(Emergency) Found 2 emergency access doors: (43,29) (43,25) Map updated. >>Enumerate(Assaults) Retrieving latest reported positions... No active assault squads found. Processing Tank disabled. [Achievement: First Step to Greatness] Map ----- +----------------------------------------------------+ | | | ?????????????????????????????????????????????????? | | ?????????????????????????????????????????????????? | | ??????#??????????????????????????????????????????? | | ?????????????????? ??????????????????????????????? | | ?????????????????????????????????????????????????? | | ?????????????????????????????????????????????????? | | ?????????????????????????????????????????????????? | | ?????????????????????????????????????????????????? | | ?????? ??????????????????????????????????????????? | | ???? ????????????????????????????????????????????? | | ?????????????????????????#???????????????????????? | | ####+########+######### ??????????????????????? | | ?????????????????????? | | == ? ??????????????????????? | | """ ???????????????????????????? | | ############ """""??? ????????????????????????? | | ??#?# # """"" ???????????????????????? | | ????#""" # """"" ??????????????????????? | | ????#""" + """ #?????????????????????? | | ????#""" # #?????????????????????? | | ???# # #?????????????????????? | | ????# # ! #?????????????????????? | | ???######## ###+### #?????????????????????? | | ???????????# ## ###+#######?????????????????? | | ?########### ## #g @ #?????????????????? | | ?# # ## /g #?????????????????? | | ?# # ## # g #?????????????????? | | ?# """ / + # """"""" #?????????????????? | | ?# """ # ## # """"""" #?????????????????? | | ?# """ ## ### + """"""" #?????????????????? | | ?# """ ## #?# # """"""" #?????????????????? | | ?# " " "T" ## #?# # """"""" #?????????????????? | | ?# ## #?################?????????????????? | | ?#### ####### #??????????????????????????????????? | | ????###?????# #??????????????????????????????????? | | ????????????# #??????????????????????????????????? | | ????????????# #??????????????????????????????????? | | ????????????#+#??????????????????????????????????? | | ?????????????????????????????????????????????????? | | ?????????????????????????????????????????????????? | | ?????????????????????????????????????????????????? | | ?????????????????????????????????????????????????? | | ?????????????????????????????????????????????????? | | ?????????????????????????????????????????????????? | | ?????????????????????????????????????????????????? | | ?????????????????????????????????????????????????? | | ?????????????????????????????????????????????????? | | ?????????????????????????????????????????????????? | | ?????????????????????????????????????????????????? | +----------------------------------------------------+ Best States ------------- Heat Dissipation 28 Energy Generation 10 Energy Capacity 125 Matter Stores 270 Matter Capacity 300 Sight Range 16 Terrain Scan Range 14 Terrain Scan Density 10 Core Shielding 20 Evasion (%) 52 Item Schematics ----------------- None Robot Schematics ------------------ None Fabricated ------------ Nothing Alien Tech Used ----------------- None Achievements -------------- First Step to Greatness Risk Taker Challenges ------------ None Game ------ Seed ZionitePowerCalibrator Manual? 0 Play Time 00:41:29 Cumulative 0.6 hours Start 2024.03.31 @ 07:07:11 End 2024.03.31 @ 08:00:48 Sessions 1 Manual Loads 0 Difficulty Rogue Special Mode None Game No. 1 Rogue 1 Adventurer 0 Explorer 0 Win Type - Total 0 Types 0/0/0/0/0/0/0/0/0 Lore% 0 Gallery% 0 Achievement% 0 Wizard Run 0 Options --------- Layout 1 ASCII 0 Keyboard 1 Movement Arrows Keybinds 0 Fullscreen 1 Font 20/SmallcapsGlow Map View 56x47 Zoom Use 2% Tactical HUD 0 Map Filters NONE Filters NONE Steam 1 RUN: 4de7b76d-8e6a-429f-a23c-0e531e038eaf